[Event "UKR-ch Women 2020"]
[Site "Kherson"]
[Date "2020.12.08"]
[Round "3.5"]
[White "Martynkova, Olena"]
[Black "Grigorchuk, Katerina"]
[Result "0-1"]
[ECO "D76"]
[WhiteElo "2222"]
[BlackElo "1767"]
[Annotator "NA"]
[PlyCount "100"]
[EventDate "2020.12.06"]
[EventType "swiss"]
[EventCountry "UKR"]
[SourceTitle "playchess.com"]
[Source "ChessBase"]
[SourceQuality "1"]
[TimeControl "40/5400+30:1800+30"]

1. d4 {[%emt 0:00:00]} Nf6 {[%emt 0:00:13]} 2. c4 {[%emt 0:00:00]} g6 {[%emt 0:00:18]} 3. Nf3 {[%emt 0:00:26]} Bg7 {[%emt 0:00:46]} 4. g3 {[%emt 0:00:50]} O-O {[%emt 0:01:28]} 5. Bg2 {[%emt 0:00:23]} d5 {[%emt 0:01:32]} 6. cxd5 {[%emt 0:01:07]} Nxd5 {[%emt 0:01:01]} 7. O-O {[%emt 0:00:37]} Nb6 {[%emt 0:01:07]} 8. Nc3 {[%emt 0:00:59]} Nc6 {[%emt 0:01:12]} 9. e3 {[%emt 0:00:46]} Re8 {[%emt 0:02:48]} 10. Re1 {[%emt 0:01:07]} a5 {[%emt 0:01:17]} 11. Qe2 {[%emt 0:01:07]} Be6 {[%emt 0:03:49]} 12. Nd2 {[%emt 0:00:44]} a4 {[%emt 0:00:18]} 13. Rb1 {[%emt 0:04:51]} Bf5 {[%emt 0:01:04]} 14. Nde4 {[%emt 0:20:56]} e5 {[%emt 0:09:28]} 15. d5 {[%emt 0:11:23]} Ne7 {[%emt 0:01:15]} 16. Rd1 {[%emt 0:19:27]} Nexd5 {[%emt 0:05:32]} 17. Nxd5 {[%emt 0:09:46]} Nxd5 {[%emt 0:01:12]} 18. Rxd5 {[%emt 0:03:15]} Qxd5 {[%emt 0:00:28]} 19. Nf6+ {[%emt 0:00:08]} Bxf6 {[%emt 0:00:07]} 20. Bxd5 {[%emt 0:00:03]} Bxb1 {[%emt 0:00:07]} 21. Bxb7 {[%emt 0:00:24]} Rab8 {[%emt 0:02:31]} 22. Bc6 {[%emt 0:05:02]} Red8 {[%emt 0:01:49]} 23. e4 {[%emt 0:02:19]} Rb4 {[%emt 0:04:35]} 24. Bd5 {[%emt 0:09:47]} c6 {[%emt 0:07:11]} 25. Qf3 {[%emt 0:02:53]} Kg7 {[%emt 0:23:16]} 26. Bh6+ {[%emt 0:00:28]} Kxh6 {[%emt 0:00:50]} 27. Qxf6 {[%emt 0:00:02]} Rc8 {[%emt 0:00:43]} 28. Qh4+ {[%emt 0:01:30]} Kg7 {[%emt 0:00:10]} 29. Qe7 {[%emt 0:00:22]} cxd5 {[%emt 0:00:59]} 30. Qxb4 {[%emt 0:00:51]} Bxe4 {[%emt 0:00:17]} 31. Qe1 {[%emt 0:02:20]} f6 {[%emt 0:06:33]} 32. Qe3 {[%emt 0:00:27]} Rc7 {[%emt 0:04:36]} 33. f3 {[%emt 0:01:28]} Bf5 {[%emt 0:00:58]} 34. g4 {[%emt 0:00:30]} d4 {[%emt 0:02:14]} 35. Qd2 {[%emt 0:00:38]} Be6 {[%emt 0:02:13]} 36. Qb4 {[%emt 0:00:29]} Rd7 {[%emt 0:06:51]} 37. Kf2 {[%emt 0:00:32]} d3 {[%emt 0:01:56]} 38. Ke1 {[%emt 0:00:26]} d2+ {[%emt 0:03:08]} 39. Kd1 {[%emt 0:00:02]} Bxa2 {[%emt 0:02:39]} 40. Qxa4 {[%emt 0:00:00]} Be6 {[%emt 0:00:00]} 41. h3 {[%emt 0:06:37]} Rd3 {[%emt 0:03:10]} 42. Ke2 {[%emt 0:01:57]} d1=Q+ {[%emt 0:00:47]} 43. Qxd1 {[%emt 0:00:04]} Rxd1 {[%emt 0:00:10]} 44. Kxd1 {[%emt 0:00:04]} Bd5 {[%emt 0:00:19]} 45. Ke2 {[%emt 0:00:07]} Kf7 {[%emt 0:00:10]} 46. b4 {[%emt 0:00:30]} Ke6 {[%emt 0:00:17]} 47. Ke3 {[%emt 0:00:06]} Bb7 {[%emt 0:00:54]} 48. f4 {[%emt 0:00:26]} e4 {[%emt 0:00:16]} 49. Kd4 {[%emt 0:00:15]} f5 {[%emt 0:00:19]} 50. g5 {[%emt 0:00:29]} Ba8 {[%emt 0:00:11]} 0-1

[Event "UKR-ch Women 2020"]
[Site "Kherson"]
[Date "2020.12.08"]
[Round "3.6"]
[White "Rakhmangulova, Anastasiya"]
[Black "Zinkevich, Julia"]
[Result "1-0"]
[ECO "C01"]
[WhiteElo "2132"]
[BlackElo "2178"]
[Annotator "NA"]
[PlyCount "161"]
[EventDate "2020.12.06"]
[EventType "swiss"]
[EventCountry "UKR"]
[SourceTitle "playchess.com"]
[Source "ChessBase"]
[SourceQuality "1"]
[TimeControl "40/5400+30:1800+30"]

1. e4 {[%emt 0:00:00]} e6 {[%emt 0:12:13]} 2. d4 {[%emt 0:00:00]} d5 {[%emt 0:00:04]} 3. exd5 {[%emt 0:00:00]} exd5 {[%emt 0:00:15]} 4. Nc3 {[%emt 0:00:00]} c6 {[%emt 0:04:30]} 5. Qf3 {[%emt 0:00:10]} Qf6 {[%emt 0:10:02]} 6. Qxf6 {[%emt 0:00:22]} Nxf6 {[%emt 0:00:18]} 7. Bd3 {[%emt 0:00:05]} Bd6 {[%emt 0:12:28]} 8. Nge2 {[%emt 0:00:19]} Bg4 {[%emt 0:06:07]} 9. f3 {[%emt 0:00:33]} Bh5 {[%emt 0:04:27]} 10. Bf4 {[%emt 0:01:04]} Bxf4 {[%emt 0:05:25]} 11. Nxf4 {[%emt 0:00:14]} Bg6 {[%emt 0:00:27]} 12. Kf2 {[%emt 0:00:41]} O-O {[%emt 0:00:37]} 13. Bxg6 {[%emt 0:13:12]} hxg6 {[%emt 0:01:13]} 14. h4 {[%emt 0:00:05]} Nbd7 {[%emt 0:05:32]} 15. g4 {[%emt 0:02:59]} Rae8 {[%emt 0:23:07]} 16. Rh2 {[%emt 0:04:58]} Re7 {[%emt 0:05:44]} 17. Rah1 {[%emt 0:02:07]} Rfe8 {[%emt 0:00:24]} 18. h5 {[%emt 0:06:45]} g5 {[%emt 0:02:02]} 19. Nfe2 {[%emt 0:00:05]} Nh7 {[%emt 0:03:22]} 20. Ng3 {[%emt 0:05:33]} Ndf8 {[%emt 0:00:07]} 21. Nf5 {[%emt 0:00:40]} Rd7 {[%emt 0:00:04]} 22. Ne2 {[%emt 0:02:17]} Ne6 {[%emt 0:01:07]} 23. c3 {[%emt 0:03:17]} b5 {[%emt 0:00:01]} 24. Kg3 {[%emt 0:07:34]} a5 {[%emt 0:00:53]} 25. Nc1 {[%emt 0:05:36]} Nf4 {[%emt 0:01:07]} 26. Nb3 {[%emt 0:00:28]} Ra7 {[%emt 0:00:40]} 27. Nc5 {[%emt 0:00:44]} b4 {[%emt 0:00:26]} 28. Rd2 {[%emt 0:07:19]} g6 {[%emt 0:00:32]} 29. Nd6 {[%emt 0:06:24]} bxc3 {[%emt 0:00:31]} 30. bxc3 {[%emt 0:00:13]} Re2 {[%emt 0:00:21]} 31. Rxe2 {[%emt 0:06:45]} Nxe2+ {[%emt 0:00:01]} 32. Kf2 {[%emt 0:00:08]} Nxc3 {[%emt 0:00:16]} 33. hxg6 {[%emt 0:00:36]} fxg6 {[%emt 0:00:09]} 34. a4 {[%emt 0:00:04]} Re7 {[%emt 0:01:47]} 35. Re1 {[%emt 0:02:34]} Rxe1 {[%emt 0:00:25]} 36. Kxe1 {[%emt 0:00:05]} Nf6 {[%emt 0:00:20]} 37. Ndb7 {[%emt 0:00:40]} Ne8 {[%emt 0:00:18]} 38. Nxa5 {[%emt 0:00:16]} Nd6 {[%emt 0:00:35]} 39. Nxc6 {[%emt 0:01:16]} Nc4 {[%emt 0:00:29]} 40. Ne5 {[%emt 0:00:00]} Nb6 {[%emt 0:00:00]} 41. a5 {[%emt 0:04:43]} Na8 {[%emt 0:07:59]} 42. Nxg6 {[%emt 0:04:59]} Kf7 {[%emt 0:01:41]} 43. Ne5+ {[%emt 0:00:07]} Ke7 {[%emt 0:00:19]} 44. Kd2 {[%emt 0:02:17]} Nb5 {[%emt 0:00:22]} 45. Ke3 {[%emt 0:01:30]} Nac7 {[%emt 0:02:56]} 46. a6 {[%emt 0:04:19]} Na8 {[%emt 0:01:38]} 47. Ned3 {[%emt 0:11:22]} Nb6 {[%emt 0:02:00]} 48. Nb2 {[%emt 0:01:47]} Kd6 {[%emt 0:03:41]} 49. Kd3 {[%emt 0:00:46]} Na8 {[%emt 0:02:17]} 50. Nd1 {[%emt 0:01:57]} Nac7 {[%emt 0:03:12]} 51. Nc3 {[%emt 0:01:00]} Na7 {[%emt 0:00:42]} 52. Ke3 {[%emt 0:12:41]} Nc6 {[%emt 0:01:01]} 53. Ne2 {[%emt 0:03:41]} Nb4 {[%emt 0:04:22]} 54. f4 {[%emt 0:05:00]} gxf4+ {[%emt 0:01:49]} 55. Kxf4 {[%emt 0:00:04]} Ke7 {[%emt 0:00:21]} 56. Nc3 {[%emt 0:02:25]} Nc6 {[%emt 0:00:07]} 57. Ne2 {[%emt 0:01:25]} Kf6 {[%emt 0:00:01]} 58. Nd7+ {[%emt 0:02:07]} Ke6 {[%emt 0:01:14]} 59. Nc5+ {[%emt 0:00:32]} Kf6 {[%emt 0:00:05]} 60. g5+ {[%emt 0:00:22]} Kg6 {[%emt 0:00:25]} 61. Kg4 {[%emt 0:00:03]} Kf7 {[%emt 0:03:23]} 62. Kf5 {[%emt 0:00:09]} Ne8 {[%emt 0:00:28]} 63. Nd7 {[%emt 0:00:34]} Ng7+ {[%emt 0:00:12]} 64. Kg4 {[%emt 0:00:14]} Ke7 {[%emt 0:00:30]} 65. Ne5 {[%emt 0:00:07]} Na7 {[%emt 0:00:14]} 66. Nf4 {[%emt 0:00:18]} Kd6 {[%emt 0:00:05]} 67. g6 {[%emt 0:00:14]} Nb5 {[%emt 0:00:37]} 68. Kg5 {[%emt 0:00:35]} Ne8 {[%emt 0:01:08]} 69. Nf3 {[%emt 0:01:10]} Kc6 {[%emt 0:00:19]} 70. Kf5 {[%emt 0:01:28]} Kb6 {[%emt 0:00:12]} 71. Nxd5+ {[%emt 0:00:09]} Kxa6 {[%emt 0:00:07]} 72. Ke6 {[%emt 0:00:36]} Kb7 {[%emt 0:00:30]} 73. Nf6 {[%emt 0:00:54]} Ng7+ {[%emt 0:01:42]} 74. Kd7 {[%emt 0:00:31]} Kb6 {[%emt 0:00:47]} 75. Nd5+ {[%emt 0:00:04]} Kb7 {[%emt 0:00:04]} 76. Nf4 {[%emt 0:00:15]} Kb6 {[%emt 0:00:39]} 77. d5 {[%emt 0:00:45]} Nc3 {[%emt 0:01:06]} 78. Ke7 {[%emt 0:00:24]} Ne4 {[%emt 0:00:23]} 79. Nd4 {[%emt 0:00:19]} Kb7 {[%emt 0:00:46]} 80. Kf7 {[%emt 0:00:22]} Nh5 {[%emt 0:00:12]} 81. Nxh5 {[%emt 0:00:09]} 1-0

[Event "UKR-ch Women 2020"]
[Site "Kherson"]
[Date "2020.12.08"]
[Round "3.7"]
[White "Tsirulnik, Maritsa"]
[Black "Hrebenshchykova, Yelyzaveta"]
[Result "0-1"]
[ECO "D76"]
[WhiteElo "2139"]
[BlackElo "2083"]
[Annotator "NA"]
[PlyCount "56"]
[EventDate "2020.12.06"]
[EventType "swiss"]
[EventCountry "UKR"]
[SourceTitle "playchess.com"]
[Source "ChessBase"]
[SourceQuality "1"]
[TimeControl "40/5400+30:1800+30"]

1. d4 {[%emt 0:00:00]} Nf6 {[%emt 0:00:00]} 2. c4 {[%emt 0:00:00]} g6 {[%emt 0:00:00]} 3. Nf3 {[%emt 0:00:00]} Bg7 {[%emt 0:00:18]} 4. g3 {[%emt 0:00:00]} O-O {[%emt 0:01:08]} 5. Bg2 {[%emt 0:00:01]} d5 {[%emt 0:01:29]} 6. cxd5 {[%emt 0:00:11]} Nxd5 {[%emt 0:00:14]} 7. O-O {[%emt 0:00:19]} Nb6 {[%emt 0:01:29]} 8. Nc3 {[%emt 0:00:11]} Nc6 {[%emt 0:00:19]} 9. e3 {[%emt 0:00:08]} Re8 {[%emt 0:00:17]} 10. h3 {[%emt 0:03:13]} a5 {[%emt 0:04:26]} 11. d5 {[%emt 0:01:06]} Ne5 {[%emt 0:09:19]} 12. Nxe5 {[%emt 0:01:08]} Bxe5 {[%emt 0:00:05]} 13. e4 {[%emt 0:07:56]} e6 {[%emt 0:02:57]} 14. Re1 {[%emt 0:02:02]} a4 {[%emt 0:28:16]} 15. Be3 {[%emt 0:35:34]} a3 {[%emt 0:12:49]} 16. Qb3 {[%emt 0:02:24]} axb2 {[%emt 0:01:01]} 17. Rad1 {[%emt 0:03:55]} exd5 {[%emt 0:01:24]} 18. Bxb6 {[%emt 0:07:43]} cxb6 {[%emt 0:00:21]} 19. f4 {[%emt 0:10:48]} Bxc3 {[%emt 0:12:29]} 20. Qxc3 {[%emt 0:00:04]} b1=Q {[%emt 0:02:03]} 21. Rxb1 {[%emt 0:00:08]} dxe4 {[%emt 0:00:13]} 22. Rbd1 {[%emt 0:02:57]} Qe7 {[%emt 0:01:57]} 23. Rxe4 {[%emt 0:00:32]} Be6 {[%emt 0:00:09]} 24. Re5 {[%emt 0:05:42]} Rxa2 {[%emt 0:04:32]} 25. g4 {[%emt 0:02:19]} Rd8 {[%emt 0:08:00]} 26. Rde1 {[%emt 0:03:25]} Rdd2 {[%emt 0:01:19]} 27. Bh1 {[%emt 0:03:03]} Qh4 {[%emt 0:01:49]} 28. Qe3 {[%emt 0:03:45]} Rd3 {[%emt 0:00:59]} 0-1

[Event "UKR-ch Women 2020"]
[Site "Kherson"]
[Date "2020.12.08"]
[Round "3.8"]
[White "Petrova, Irina"]
[Black "Dubovyk, Anastasiia"]
[Result "1-0"]
[ECO "B51"]
[WhiteElo "2077"]
[BlackElo "1971"]
[Annotator "NA"]
[PlyCount "67"]
[EventDate "2020.12.06"]
[EventType "swiss"]
[EventCountry "UKR"]
[SourceTitle "playchess.com"]
[Source "ChessBase"]
[SourceQuality "1"]
[TimeControl "40/5400+30:1800+30"]

1. e4 {[%emt 0:00:00]} c5 {[%emt 0:00:00]} 2. Nf3 {[%emt 0:00:00]} d6 {[%emt 0:00:00]} 3. Bb5+ {[%emt 0:00:00]} Nd7 {[%emt 0:00:00]} 4. O-O {[%emt 0:00:00]} a6 {[%emt 0:00:00]} 5. Bxd7+ {[%emt 0:00:08]} Bxd7 {[%emt 0:00:00]} 6. d4 {[%emt 0:00:08]} cxd4 {[%emt 0:00:05]} 7. Qxd4 {[%emt 0:00:06]} Rc8 {[%emt 0:00:06]} 8. a4 {[%emt 0:00:06]} e5 {[%emt 0:02:32]} 9. Qd3 {[%emt 0:00:06]} h6 {[%emt 0:00:55]} 10. c4 {[%emt 0:00:11]} Qc7 {[%emt 0:06:01]} 11. Nfd2 {[%emt 0:05:28]} Be6 {[%emt 0:06:21]} 12. b3 {[%emt 0:00:37]} Nf6 {[%emt 0:05:42]} 13. Nc3 {[%emt 0:00:28]} Be7 {[%emt 0:00:46]} 14. Ba3 {[%emt 0:05:11]} O-O {[%emt 0:01:56]} 15. Rfd1 {[%emt 0:00:22]} Ne8 {[%emt 0:04:22]} 16. Nf1 {[%emt 0:02:47]} f5 {[%emt 0:14:24]} 17. Ne3 {[%emt 0:06:20]} fxe4 {[%emt 0:03:27]} 18. Nxe4 {[%emt 0:00:11]} Rd8 {[%emt 0:08:42]} 19. Nd5 {[%emt 0:12:33]} Bxd5 {[%emt 0:04:25]} 20. Qxd5+ {[%emt 0:00:06]} Rf7 {[%emt 0:00:43]} 21. Rd3 {[%emt 0:09:36]} Qc8 {[%emt 0:14:21]} 22. Rad1 {[%emt 0:06:32]} Kf8 {[%emt 0:14:45]} 23. f3 {[%emt 0:12:08]} b6 {[%emt 0:04:27]} 24. Kh1 {[%emt 0:04:03]} g6 {[%emt 0:03:32]} 25. a5 {[%emt 0:02:36]} bxa5 {[%emt 0:03:51]} 26. Qxa5 {[%emt 0:00:16]} Qc6 {[%emt 0:00:48]} 27. Qd2 {[%emt 0:01:19]} Kg7 {[%emt 0:00:32]} 28. c5 {[%emt 0:01:42]} d5 {[%emt 0:00:44]} 29. Rxd5 {[%emt 0:00:45]} Rb8 {[%emt 0:00:28]} 30. Bb2 {[%emt 0:00:46]} Rxb3 {[%emt 0:00:22]} 31. Bxe5+ {[%emt 0:00:07]} Kh7 {[%emt 0:00:33]} 32. Qa2 {[%emt 0:03:39]} Qb5 {[%emt 0:00:39]} 33. R5d3 {[%emt 0:01:01]} Rxf3 {[%emt 0:00:30]} 34. gxf3 {[%emt 0:01:11]} 1-0

[Event "UKR-ch Women 2020"]
[Site "Kherson"]
[Date "2020.12.08"]
[Round "3.9"]
[White "Mashchenko, Tamila"]
[Black "Barchuk, Irina"]
[Result "0-1"]
[ECO "A10"]
[WhiteElo "1768"]
[BlackElo "2075"]
[Annotator "NA"]
[PlyCount "68"]
[EventDate "2020.12.06"]
[EventType "swiss"]
[EventCountry "UKR"]
[SourceTitle "playchess.com"]
[Source "ChessBase"]
[SourceQuality "1"]
[TimeControl "40/5400+30:1800+30"]

1. c4 {[%emt 0:00:00]} g6 {[%emt 0:00:00]} 2. Nc3 {[%emt 0:00:00]} Bg7 {[%emt 0:00:00]} 3. g3 {[%emt 0:00:00]} Nf6 {[%emt 0:00:00]} 4. Bg2 {[%emt 0:00:00]} O-O {[%emt 0:00:00]} 5. e3 {[%emt 0:00:07]} d6 {[%emt 0:00:06]} 6. Nge2 {[%emt 0:00:05]} e5 {[%emt 0:01:23]} 7. O-O {[%emt 0:00:28]} c6 {[%emt 0:00:04]} 8. d3 {[%emt 0:02:40]} Be6 {[%emt 0:03:33]} 9. Rb1 {[%emt 0:07:56]} d5 {[%emt 0:08:11]} 10. cxd5 {[%emt 0:08:21]} Nxd5 {[%emt 0:00:53]} 11. b4 {[%emt 0:14:00]} Qd7 {[%emt 0:02:12]} 12. b5 {[%emt 0:03:55]} Rd8 {[%emt 0:07:11]} 13. Ne4 {[%emt 0:06:11]} b6 {[%emt 0:04:22]} 14. bxc6 {[%emt 0:05:20]} Nxc6 {[%emt 0:00:06]} 15. Ba3 {[%emt 0:02:22]} Rab8 {[%emt 0:09:56]} 16. Qd2 {[%emt 0:08:37]} h6 {[%emt 0:02:47]} 17. Rfc1 {[%emt 0:02:51]} a5 {[%emt 0:00:38]} 18. Bd6 {[%emt 0:22:43]} Rbc8 {[%emt 0:01:44]} 19. Ba3 {[%emt 0:01:17]} Ndb4 {[%emt 0:01:52]} 20. Bxb4 {[%emt 0:01:09]} Nxb4 {[%emt 0:00:07]} 21. a3 {[%emt 0:01:50]} Nxd3 {[%emt 0:07:21]} 22. Rxc8 {[%emt 0:00:27]} Qxc8 {[%emt 0:00:09]} 23. Rxb6 {[%emt 0:03:45]} Nf4 {[%emt 0:04:22]} 24. Rd6 {[%emt 0:01:56]} Rxd6 {[%emt 0:01:30]} 25. Nxd6 {[%emt 0:00:01]} Nxe2+ {[%emt 0:00:07]} 26. Qxe2 {[%emt 0:00:02]} Qc1+ {[%emt 0:00:12]} 27. Bf1 {[%emt 0:00:36]} Qxa3 {[%emt 0:00:14]} 28. Qa6 {[%emt 0:01:14]} Qb4 {[%emt 0:03:41]} 29. Nc4 {[%emt 0:04:37]} a4 {[%emt 0:00:28]} 30. Nb6 {[%emt 0:00:34]} a3 {[%emt 0:05:18]} 31. Nc4 {[%emt 0:00:37]} Bf8 {[%emt 0:00:21]} 32. Nxe5 {[%emt 0:01:01]} a2 {[%emt 0:01:12]} 33. Nxg6 {[%emt 0:00:22]} Qb1 {[%emt 0:00:32]} 34. Qa8 {[%emt 0:00:20]} fxg6 {[%emt 0:00:10]} 0-1

[Event "UKR-ch Women 2020"]
[Site "Kherson"]
[Date "2020.12.08"]
[Round "3.10"]
[White "Yeshchenko, Uliana"]
[Black "Grineva, Marianna"]
[Result "1-0"]
[ECO "B06"]
[WhiteElo "1872"]
[BlackElo "2001"]
[Annotator "NA"]
[PlyCount "83"]
[EventDate "2020.12.06"]
[EventType "swiss"]
[EventCountry "UKR"]
[SourceTitle "playchess.com"]
[Source "ChessBase"]
[SourceQuality "1"]
[TimeControl "40/5400+30:1800+30"]

1. e4 {[%emt 0:00:00]} g6 {[%emt 0:00:00]} 2. d4 {[%emt 0:00:00]} d6 {[%emt 0:00:12]} 3. Nc3 {[%emt 0:00:03]} c6 {[%emt 0:00:10]} 4. Nf3 {[%emt 0:00:21]} Bg7 {[%emt 0:00:37]} 5. Be3 {[%emt 0:00:16]} b5 {[%emt 0:00:48]} 6. Qd2 {[%emt 0:01:07]} a6 {[%emt 0:03:20]} 7. Bd3 {[%emt 0:04:13]} Nd7 {[%emt 0:01:30]} 8. h4 {[%emt 0:04:49]} h5 {[%emt 0:00:54]} 9. Ng5 {[%emt 0:03:03]} Nh6 {[%emt 0:06:12]} 10. e5 {[%emt 0:21:28]} Nb6 {[%emt 0:06:05]} 11. e6 {[%emt 0:02:03]} f5 {[%emt 0:02:33]} 12. Ne2 {[%emt 0:04:20]} Nd5 {[%emt 0:05:25]} 13. f3 {[%emt 0:02:45]} O-O {[%emt 0:10:12]} 14. c3 {[%emt 0:05:44]} Rf6 {[%emt 0:03:56]} 15. O-O-O {[%emt 0:02:45]} Qf8 {[%emt 0:02:31]} 16. Nf4 {[%emt 0:04:10]} Nxf4 {[%emt 0:07:37]} 17. Bxf4 {[%emt 0:00:06]} Bxe6 {[%emt 0:00:13]} 18. Nxe6 {[%emt 0:00:31]} Rxe6 {[%emt 0:00:06]} 19. d5 {[%emt 0:00:28]} Rf6 {[%emt 0:04:39]} 20. Bg5 {[%emt 0:03:20]} cxd5 {[%emt 0:05:34]} 21. Bxf6 {[%emt 0:00:41]} Bxf6 {[%emt 0:03:17]} 22. Bc2 {[%emt 0:01:19]} e6 {[%emt 0:01:14]} 23. Rde1 {[%emt 0:01:53]} Kf7 {[%emt 0:05:48]} 24. Bb3 {[%emt 0:03:50]} Rc8 {[%emt 0:04:42]} 25. Kb1 {[%emt 0:01:38]} Rc5 {[%emt 0:08:49]} 26. Qe3 {[%emt 0:02:06]} e5 {[%emt 0:02:07]} 27. Rd1 {[%emt 0:00:45]} f4 {[%emt 0:02:15]} 28. Qf2 {[%emt 0:01:51]} Qb8 {[%emt 0:05:16]} 29. Rxd5 {[%emt 0:02:19]} Rxd5 {[%emt 0:00:11]} 30. Bxd5+ {[%emt 0:00:05]} Kg7 {[%emt 0:00:14]} 31. Be4 {[%emt 0:02:25]} Nf5 {[%emt 0:02:38]} 32. Bxf5 {[%emt 0:00:39]} gxf5 {[%emt 0:00:04]} 33. g3 {[%emt 0:02:44]} fxg3 {[%emt 0:03:16]} 34. Qxg3+ {[%emt 0:00:09]} Kf7 {[%emt 0:00:09]} 35. Rg1 {[%emt 0:01:04]} b4 {[%emt 0:00:51]} 36. cxb4 {[%emt 0:02:17]} Qxb4 {[%emt 0:02:00]} 37. Qg8+ {[%emt 0:00:33]} Ke7 {[%emt 0:00:05]} 38. Rc1 {[%emt 0:00:46]} Qa5 {[%emt 0:01:00]} 39. Qc8 {[%emt 0:01:51]} Bxh4 {[%emt 0:02:15]} 40. Rc7+ {[%emt 0:00:00]} Kf6 {[%emt 0:00:00]} 41. Qd8+ {[%emt 0:00:57]} Ke6 {[%emt 0:05:04]} 42. Qg8+ {[%emt 0:00:13]} 1-0

[Event "UKR-ch Women 2020"]
[Site "Kherson"]
[Date "2020.12.09"]
[Round "4.1"]
[White "Shpanko, Nadiia"]
[Black "Berdnyk, Mariia"]
[Result "1/2-1/2"]
[ECO "C47"]
[WhiteElo "2235"]
[BlackElo "2324"]
[Annotator "RC"]
[PlyCount "58"]
[EventDate "2020.12.06"]
[EventType "swiss"]
[EventCountry "UKR"]
[SourceTitle "playchess.com"]
[Source "ChessBase"]
[SourceQuality "1"]
[TimeControl "40/5400+30:1800+30"]

1. e4 {[%emt 0:00:00]} e5 {[%emt 0:00:00]} 2. Nf3 {[%emt 0:00:00]} Nc6 {[%emt 0:00:00]} 3. Nc3 {[%emt 0:00:16]} Nf6 {[%emt 0:00:00]} 4. d4 {[%emt 0:04:04]} Bb4 {[%emt 0:00:00]} 5. Nxe5 {[%emt 0:02:52]} Nxe4 {[%emt 0:00:04]} 6. Qf3 {[%emt 0:10:29]} Nf6 {[%emt 0:00:48]} 7. Be3 {[%emt 0:11:44]} O-O {[%emt 0:07:38]} 8. Bd3 {[%emt 0:05:22]} Re8 {[%emt 0:03:39]} 9. Nxc6 {[%emt 0:00:35]} dxc6 {[%emt 0:00:08]} 10. O-O {[%emt 0:00:20]} Bg4 {[%emt 0:02:00]} 11. Qg3 {[%emt 0:01:47]} Bxc3 {[%emt 0:04:44]} 12. bxc3 {[%emt 0:00:11]} Qd7 {[%emt 0:00:35]} 13. Rfe1 {[%emt 0:04:29]} Nd5 {[%emt 0:05:41]} 14. Bd2 {[%emt 0:00:55]} Bf5 {[%emt 0:03:41]} 15. c4 {[%emt 0:05:50]} Bxd3 {[%emt 0:06:52]} 16. Qxd3 {[%emt 0:00:12]} Ne7 {[%emt 0:00:21]} 17. Rab1 {[%emt 0:11:41]} b6 {[%emt 0:01:13]} 18. Bf4 {[%emt 0:02:43]} Nf5 {[%emt 0:04:28]} 19. c3 {[%emt 0:00:13]} g6 {[%emt 0:06:00]} 20. Qd2 {[%emt 0:03:58]} Nd6 {[%emt 0:02:50]} 21. Qd3 {[%emt 0:04:46]} Rxe1+ {[%emt 0:02:59]} 22. Rxe1 {[%emt 0:00:05]} Re8 {[%emt 0:00:23]} 23. Rxe8+ {[%emt 0:01:49]} Qxe8 {[%emt 0:00:01]} 24. Bxd6 {[%emt 0:00:10]} Qe1+ {[%emt 0:06:19]} 25. Qf1 {[%emt 0:00:05]} Qxf1+ {[%emt 0:00:03]} 26. Kxf1 {[%emt 0:00:04]} cxd6 {[%emt 0:00:04]} 27. Ke2 {[%emt 0:00:23]} f5 {[%emt 0:03:47]} 28. Kd3 {[%emt 0:02:28]} Kf7 {[%emt 0:01:56]} 29. f4 {[%emt 0:03:17]} Ke6 {[%emt 0:00:23]} 1/2-1/2

[Event "UKR-ch Women 2020"]
[Site "Kherson"]
[Date "2020.12.09"]
[Round "4.2"]
[White "Osmak, Iulija"]
[Black "Buksa, Nataliya"]
[Result "0-1"]
[ECO "A16"]
[WhiteElo "2438"]
[BlackElo "2410"]
[Annotator "ChessBase"]
[PlyCount "101"]
[EventDate "2020.12.06"]
[EventType "swiss"]
[EventCountry "UKR"]
[SourceTitle "playchess.com"]
[Source "ChessBase"]
[SourceQuality "1"]
[TimeControl "40/5400+30:1800+30"]

1. c4 {[%emt 0:00:00]} Nf6 {[%emt 0:00:12]} 2. Nc3 {[%emt 0:00:00]} g6 {[%emt 0:00:17]} 3. e4 {[%emt 0:02:05]} e5 {[%emt 0:00:04]} 4. g3 {[%emt 0:06:28]} Bg7 {[%emt 0:05:25]} 5. Nge2 {[%emt 0:03:33]} Nc6 {[%emt 0:01:44]} 6. Bg2 {[%emt 0:00:21]} d6 {[%emt 0:00:06]} 7. d3 {[%emt 0:02:05]} Bg4 {[%emt 0:09:33]} 8. f3 {[%emt 0:11:02]} Be6 {[%emt 0:00:06]} 9. Be3 {[%emt 0:00:05]} h5 {[%emt 0:06:46]} 10. Qd2 {[%emt 0:14:46]} Qd7 {[%emt 0:08:02]} 11. Nd5 {[%emt 0:04:34]} Nd8 {[%emt 0:06:59]} 12. d4 {[%emt 0:03:34]} c6 {[%emt 0:12:46]} 13. Nxf6+ {[%emt 0:04:55]} Bxf6 {[%emt 0:00:04]} 14. d5 {[%emt 0:00:14]} cxd5 {[%emt 0:09:56]} 15. cxd5 {[%emt 0:00:24]} Bh3 {[%emt 0:00:02]} 16. Bxh3 {[%emt 0:06:55]} Qxh3 {[%emt 0:00:04]} 17. Nc3 {[%emt 0:00:12]} Qd7 {[%emt 0:04:51]} 18. Qe2 {[%emt 0:05:31]} a6 {[%emt 0:03:19]} 19. a4 {[%emt 0:02:01]} Qe7 {[%emt 0:07:20]} 20. h4 {[%emt 0:06:08]} g5 {[%emt 0:03:37]} 21. hxg5 {[%emt 0:05:00]} Bxg5 {[%emt 0:00:02]} 22. f4 {[%emt 0:05:24]} exf4 {[%emt 0:00:56]} 23. gxf4 {[%emt 0:00:02]} Bf6 {[%emt 0:02:22]} 24. Bb6 {[%emt 0:02:44]} Rc8 {[%emt 0:00:21]} 25. Kd2 {[%emt 0:01:59]} h4 {[%emt 0:06:52]} 26. Qd3 {[%emt 0:01:26]} Qd7 {[%emt 0:01:47]} 27. Rag1 {[%emt 0:01:21]} Bxc3+ {[%emt 0:02:50]} 28. bxc3 {[%emt 0:00:04]} Qxa4 {[%emt 0:00:02]} 29. Bd4 {[%emt 0:01:01]} Rf8 {[%emt 0:00:41]} 30. Rxh4 {[%emt 0:01:29]} b5 {[%emt 0:00:23]} 31. Qh3 {[%emt 0:04:10]} Rc4 {[%emt 0:00:37]} 32. Qd3 {[%emt 0:04:26]} Nb7 {[%emt 0:00:46]} 33. Rhh1 {[%emt 0:00:31]} Na5 {[%emt 0:00:50]} 34. Ke3 {[%emt 0:00:21]} Nb3 {[%emt 0:00:23]} 35. Bb6 {[%emt 0:00:53]} Qa3 {[%emt 0:01:53]} 36. Kf2 {[%emt 0:01:39]} Qb2+ {[%emt 0:04:24]} 37. Qe2 {[%emt 0:00:24]} Nd2 {[%emt 0:01:07]} 38. Re1 {[%emt 0:00:33]} Nxe4+ {[%emt 0:00:23]} 39. Kf1 {[%emt 0:00:23]} Qxc3 {[%emt 0:00:20]} 40. Rh4 {[%emt 0:00:00]} Kd7 {[%emt 0:00:00]} 41. Qg4+ {[%emt 0:04:15]} f5 {[%emt 0:03:57]} 42. Qg6 {[%emt 0:02:28]} Qd3+ {[%emt 0:01:19]} 43. Kg1 {[%emt 0:01:07]} Qxd5 {[%emt 0:00:47]} 44. Rh7+ {[%emt 0:05:08]} Kc6 {[%emt 0:02:16]} 45. Ba5 {[%emt 0:02:00]} b4 {[%emt 0:03:01]} 46. Rb1 {[%emt 0:13:29]} Qd4+ {[%emt 0:07:18]} 47. Kh1 {[%emt 0:00:29]} Qd3 {[%emt 0:01:44]} 48. Rc7+ {[%emt 0:01:07]} Kd5 {[%emt 0:00:35]} 49. Re1 {[%emt 0:03:42]} Rxc7 {[%emt 0:01:39]} 50. Bxc7 {[%emt 0:00:10]} Rh8+ {[%emt 0:00:04]} 51. Kg1 {[%emt 0:00:21]} 0-1